bitfinex/quotes_BTCUSD_20241216
["timestamp","ask_amount","ask_price","bid_price","bid_amount"]
[1734349951866,7.73888567,103920.0,103910.0,8.62e-05]
[1734349952086,0.1302,103910.0,103900.0,0.09649347]
[1734349952301,0.0497309,103900.0,103890.0,0.00863609]
[1734349952535,0.0497309,103900.0,103890.0,0.25609146]
[1734349952791,0.22465982,103910.0,103900.0,0.096246]
[1734349953941,0.22465982,103910.0,103890.0,0.44858846]
[1734349954150,0.22465982,103910.0,103900.0,0.096246]
[1734349955284,0.22465982,103910.0,103900.0,0.0963322]
[1734349955734,0.22465982,103910.0,103900.0,8.62e-05]
[1734349956241,0.22465982,103910.0,103880.0,0.20129186]
[1734349956242,0.047,103890.0,103880.0,0.20129186]
[1734349956513,0.2203907,103890.0,103880.0,0.20129186]
[1734349956968,0.2203907,103890.0,103880.0,0.192516]
[1734349957185,0.2200407,103890.0,103880.0,0.192516]
[1734349958042,0.12575,103890.0,103880.0,0.35235746]
[1734349960691,0.12575,103890.0,103880.0,0.51219892]
[1734349960903,0.12575,103890.0,103880.0,0.35235746]
[1734349961136,0.1754809,103890.0,103880.0,0.192516]
[1734349961357,0.1754809,103890.0,103880.0,0.35235746]
[1734349963103,0.2200407,103890.0,103880.0,0.192516]
[1734349963312,0.2200407,103890.0,103880.0,0.096257]
[1734349963991,0.0497309,103880.0,103870.0,0.192538]
[1734349964216,0.14522495,103880.0,103870.0,0.29918317]
[1734349964638,0.14522495,103880.0,103870.0,0.192538]
[1734349965104,0.17649405,103880.0,103870.0,0.29918317]
[1734349966707,0.17649405,103880.0,103870.0,0.192538]
[1734349966938,0.17649405,103880.0,103870.0,0.29918317]
[1734349967586,0.1752907,103880.0,103870.0,0.29918317]
[1734349967806,0.17649405,103880.0,103870.0,0.29918317]
[1734349969185,0.1752907,103880.0,103870.0,0.29918317]
[1734349971176,0.17649405,103880.0,103870.0,0.29918317]
[1734349973225,0.1752907,103880.0,103870.0,0.29918317]
[1734349974597,0.17649405,103880.0,103870.0,0.29918317]
[1734349977974,0.17649405,103880.0,103870.0,0.30802798]
[1734349978406,0.17649405,103880.0,103870.0,0.30811418]
[1734349979290,0.17649405,103880.0,103870.0,0.31133329]
[1734349979641,0.17649405,103880.0,103870.0,0.30811418]
[1734349979848,0.17649405,103880.0,103870.0,0.31133169]
[1734349981199,0.24805956,103880.0,103870.0,0.11879369]
[1734349981417,0.42638781,103880.0,103870.0,0.01214852]
[1734349981686,0.61891681,103880.0,103870.0,0.00893101]
[1734349981890,0.61891681,103880.0,103870.0,8.62e-05]
[1734349982327,0.2717907,103880.0,103870.0,0.10673137]
[1734349982542,0.2717907,103880.0,103870.0,0.20300537]
[1734349982754,0.2717907,103880.0,103870.0,0.10673137]
[1734349983177,0.4643197,103880.0,103870.0,0.10673137]
[1734349983405,0.4643197,103880.0,103870.0,0.10995203]
[1734349983619,0.2717907,103880.0,103870.0,0.20622603]
[1734349983835,0.4643197,103880.0,103870.0,0.10995203]
[1734349984293,0.2217907,103880.0,103870.0,0.20300537]
[1734349984985,0.339085,103850.0,103840.0,8.62e-05]
[1734349985187,0.5103757,103850.0,103840.0,8.62e-05]
[1734349985412,0.2177907,103850.0,103840.0,0.10995458]
[1734349985881,0.2677907,103850.0,103840.0,0.10995458]
[1734349986098,0.2177907,103850.0,103840.0,0.10995458]
[1734349986310,0.21789912,103850.0,103840.0,0.20625658]
[1734349989349,0.21789912,103850.0,103840.0,0.09961141]
[1734349989566,0.43727403,103850.0,103840.0,0.00330941]
[1734349989799,0.41048412,103850.0,103840.0,0.00330941]
[1734349990444,0.46048412,103850.0,103840.0,0.00330941]
[1734349990672,0.71048412,103850.0,103840.0,0.00330941]
[1734349990895,0.71048412,103850.0,103840.0,0.10995458]
[1734349991113,0.51789912,103850.0,103840.0,0.10995458]
[1734349991553,0.71048412,103850.0,103840.0,0.10995458]
[1734349991786,0.46048412,103850.0,103840.0,0.10995458]
[1734349992017,0.26789912,103850.0,103840.0,0.10995458]
[1734349992233,0.26789912,103850.0,103840.0,0.20625658]
[1734349992476,0.26789912,103850.0,103840.0,0.10995458]
[1734349992911,0.21789912,103850.0,103840.0,0.20625658]
[1734349993128,0.00010842,103850.0,103840.0,0.20625658]
[1734349994905,0.09560279,103850.0,103840.0,0.20625658]
[1734349996460,0.0497309,103840.0,103830.0,0.20295117]
[1734349996670,0.1440216,103840.0,103830.0,0.40590234]
[1734349999055,0.00010842,103850.0,103840.0,0.096302]
[1734349999268,0.00010842,103850.0,103840.0,0.30959234]
[1734349999694,0.00010842,103850.0,103840.0,0.20294717]
[1734350001518,0.04983932,103850.0,103840.0,0.20294717]
[1734350001741,0.00010842,103850.0,103840.0,0.30959234]
[1734350001955,4.2e-07,103850.0,103840.0,0.45967864]
[1734350002805,4.2e-07,103850.0,103840.0,0.60396934]
[1734350003013,4.2e-07,103850.0,103840.0,0.62696934]
[1734350003451,4.2e-07,103850.0,103840.0,0.45967864]
[1734350003633,4.2e-07,103850.0,103840.0,0.46886089]
[1734350005026,4.2e-07,103850.0,103840.0,0.25557055]
[1734350005223,4.2e-07,103850.0,103840.0,0.46886089]
[1734350010976,4.2e-07,103850.0,103840.0,0.36221572]
[1734350011389,4.2e-07,103850.0,103840.0,0.21221572]
[1734350011594,0.04973132,103850.0,103840.0,0.21221572]
[1734350012425,0.04973132,103850.0,103840.0,0.31886089]
[1734350012841,0.04973132,103850.0,103840.0,0.21221572]
[1734350013062,4.2e-07,103850.0,103840.0,0.21221572]
[1734350013270,0.04973132,103850.0,103840.0,0.21221572]
[1734350013886,4.2e-07,103850.0,103840.0,0.21221572]
[1734350014097,0.04990392,103850.0,103840.0,0.21221572]
[1734350017654,0.09566737,103850.0,103840.0,0.21221572]
[1734350017874,0.17386737,103850.0,103840.0,0.20303347]
[1734350018902,0.17386737,103850.0,103840.0,0.0963883]
[1734350019110,0.17386737,103850.0,103840.0,0.20303347]
[1734350022274,0.41235237,103850.0,103840.0,8.63e-05]
[1734350022533,0.69080011,103850.0,103840.0,8.63e-05]
[1734350022741,0.69080011,103850.0,103830.0,8.63e-05]
[1734350022742,0.242604,103840.0,103830.0,8.63e-05]
[1734350022968,0.619059,103840.0,103830.0,8.63e-05]
[1734350023384,0.372522,103830.0,103820.0,0.0005863]
[1734350023603,0.4668127,103830.0,103820.0,0.0005863]
[1734350023840,0.345541,103820.0,103810.0,0.28383264]
[1734350024031,0.0312,103800.0,103790.0,0.01047539]
[1734350024253,0.36937332,103800.0,103790.0,0.00056357]
[1734350024483,0.4641687,103800.0,103790.0,0.10673157]
[1734350024694,0.1714907,103800.0,103790.0,0.10673157]
[1734350024910,0.0942907,103800.0,103790.0,0.30972474]
[1734350025327,0.0942907,103800.0,103790.0,0.0914344]
[1734350025575,0.0942907,103800.0,103790.0,0.19864213]
[1734350026662,0.0497309,103800.0,103790.0,0.4016353]
[1734350026872,0.0497309,103800.0,103790.0,0.29499013]
[1734350027289,0.0497309,103800.0,103790.0,0.4016353]
[1734350027501,0.08340425,103820.0,103790.0,0.4016353]
[1734350027717,0.0497309,103800.0,103790.0,0.18834496]
[1734350028159,0.09549495,103810.0,103790.0,0.28469296]
[1734350028380,0.08340412,103820.0,103800.0,0.19267]
[1734350028590,0.17769482,103820.0,103810.0,0.10664517]
[1734350029006,0.17769482,103820.0,103810.0,0.20297417]
[1734350029211,0.17769482,103820.0,103810.0,0.096329]
[1734350029433,0.17769482,103820.0,103810.0,0.20297417]
[1734350033743,0.17769482,103820.0,103810.0,0.096329]
[1734350033950,0.17769482,103820.0,103800.0,0.29931517]
[1734350033951,0.61297682,103820.0,103800.0,0.29930917]
[1734350034184,0.61297682,103820.0,103800.0,0.192664]
[1734350034185,0.095495,103810.0,103800.0,0.192664]
[1734350034393,0.095495,103810.0,103800.0,0.29930917]
[1734350037574,0.095495,103810.0,103790.0,0.00056256]
[1734350037793,0.095495,103810.0,103750.0,0.1071808]
[1734350037794,0.0497309,103740.0,103720.0,0.21513174]
[1734350038059,0.0497309,103720.0,103710.0,0.10664517]
[1734350038354,0.0942907,103720.0,103710.0,0.096422]
[1734350038612,0.2871277,103720.0,103710.0,0.00301019]
[1734350038866,0.05,103700.0,103680.0,0.00056366]
[1734350039117,0.09549648,103690.0,103680.0,0.00056366]
[1734350039356,0.09549648,103690.0,103670.0,0.00301138]
[1734350039357,0.37872512,103690.0,103670.0,0.00301138]
[1734350039565,0.17569648,103690.0,103670.0,0.096451]
[1734350039778,0.17569648,103690.0,103670.0,0.20309617]
[1734350039779,0.22569648,103690.0,103670.0,0.20309617]
[1734350039995,0.1442907,103680.0,103660.0,1.20316517]
[1734350040208,0.14549668,103670.0,103660.0,0.99506]
[1734350040426,0.11849668,103670.0,103660.0,0.99506]
[1734350040850,0.39522758,103670.0,103660.0,1.2521674]
[1734350041062,0.3442907,103670.0,103660.0,1.2521674]
[1734350041270,0.3442907,103670.0,103660.0,1.091529]
[1734350041485,0.74390959,103670.0,103660.0,0.99506]
[1734350041702,0.59649059,103670.0,103660.0,0.99506]
[1734350041953,0.64649059,103670.0,103660.0,0.99506]
[1734350042160,0.56206152,103670.0,103660.0,0.99506]
[1734350042372,0.75498052,103670.0,103660.0,0.99506]
[1734350042585,0.75498052,103670.0,103660.0,0.91696]
[1734350042791,0.3442907,103670.0,103660.0,0.91696]
[1734350042999,0.3940216,103670.0,103660.0,1.1740674]
[1734350043211,0.0497309,103690.0,103660.0,1.1740674]
[1734350043436,0.0497309,103690.0,103670.0,0.096452]
[1734350043663,0.00056291,103700.0,103690.0,0.096441]
[1734350043882,0.00056291,103700.0,103690.0,0.2570794]
[1734350043883,0.12953452,103700.0,103690.0,0.2570794]
[1734350044106,0.13073983,103700.0,103690.0,0.2570794]
[1734350044313,0.12953452,103700.0,103690.0,0.2570794]
[1734350044944,0.0942907,103700.0,103690.0,0.096441]
[1734350045152,0.0942907,103700.0,103690.0,0.2570794]
[1734350045569,0.3512055,103720.0,103690.0,0.2570794]
[1734350045570,0.03524382,103710.0,103690.0,0.2570794]
[1734350045860,0.03524382,103720.0,103700.0,0.2570624]
[1734350046072,0.03524382,103720.0,103710.0,0.1606384]
[1734350046073,0.09549598,103720.0,103710.0,0.1606384]
[1734350046282,0.1307398,103720.0,103710.0,0.1606384]
[1734350046489,0.1307398,103720.0,103710.0,0.2570604]
[1734350046691,0.09549598,103720.0,103710.0,0.2570604]
[1734350048211,0.1307398,103720.0,103710.0,0.4176988]
[1734350048420,0.1307398,103720.0,103710.0,0.096422]
[1734350048421,0.03524382,103720.0,103710.0,0.096422]
[1734350048628,0.12953452,103720.0,103710.0,0.2570604]
[1734350049474,0.10724415,103720.0,103710.0,0.096422]
[1734350049701,0.03524382,103700.0,103690.0,0.16120131]
[1734350049914,0.12953452,103700.0,103690.0,0.16120131]
[1734350050131,0.12953452,103700.0,103690.0,0.25764231]
[1734350050970,0.0942907,103700.0,103690.0,0.25764231]
[1734350052279,0.0942907,103700.0,103690.0,0.09700391]
[1734350052498,0.0942907,103700.0,103690.0,0.34451381]
[1734350052919,0.09549621,103700.0,103690.0,0.34451381]
[1734350053128,0.0942907,103700.0,103690.0,0.34451381]
[1734350053599,0.25,103710.0,103690.0,0.53738781]
[1734350053825,0.03524382,103700.0,103690.0,0.44094681]
[1734350054033,0.12953452,103710.0,103690.0,0.53738781]
[1734350054242,0.03524382,103700.0,103690.0,0.44094681]
[1734350054453,0.12953452,103710.0,103690.0,0.53738781]
[1734350054666,0.00137799,103720.0,103700.0,0.3439339]
[1734350054870,0.09566869,103720.0,103700.0,0.4403659]
[1734350055080,0.03524382,103710.0,103700.0,0.4403659]
[1734350055288,0.09566869,103720.0,103700.0,0.5367979]
[1734350055495,0.09566869,103720.0,103710.0,0.096422]
[1734350056127,0.0944633,103720.0,103710.0,0.34374871]
[1734350056562,0.0944633,103720.0,103710.0,0.09623881]
[1734350057400,0.0944633,103720.0,103710.0,0.34374871]
[1734350058274,0.09138341,103720.0,103710.0,0.34374871]
[1734350058664,0.09138341,103720.0,103710.0,0.09623881]
[1734350060374,0.09258875,103720.0,103710.0,0.09623881]
[1734350060812,0.34258875,103720.0,103710.0,0.09623881]
[1734350061026,0.34138341,103720.0,103710.0,0.09623881]
[1734350061281,0.59774999,103720.0,103710.0,8.63e-05]
[1734350061508,0.34155601,103720.0,103710.0,0.0965083]
[1734350061717,0.09155601,103720.0,103710.0,0.0965083]
[1734350061918,0.09276138,103720.0,103710.0,0.0965083]
[1734350062990,0.09155601,103720.0,103710.0,0.0965083]
[1734350063870,0.09155601,103720.0,103710.0,0.3440182]
[1734350065190,0.09155601,103720.0,103710.0,0.0965083]
[1734350066059,0.09155601,103720.0,103710.0,0.4940182]
[1734350066060,0.0001726,103720.0,103710.0,0.4940182]
[1734350068865,6e-07,103720.0,103710.0,0.4940182]
[1734350069099,6e-07,103720.0,103710.0,0.5883089]
[1734350070550,6e-07,103720.0,103710.0,0.6613089]
[1734350070766,6e-07,103720.0,103710.0,0.67606508]
[1734350070981,0.03524382,103760.0,103750.0,0.3438949]
[1734350071182,0.25120472,103780.0,103750.0,0.4402799]
[1734350071394,0.03524382,103760.0,103750.0,0.19277]
[1734350071609,0.12953452,103770.0,103750.0,0.289155]
[1734350071821,0.0942907,103770.0,103760.0,0.096376]
[1734350072235,0.0942907,103770.0,103760.0,0.09654468]
[1734350072438,0.0942907,103770.0,103760.0,0.33905458]
[1734350072856,0.05120469,103790.0,103760.0,0.33905458]
[1734350073068,0.3259,103800.0,103780.0,0.3438669]
[1734350073287,0.09549528,103790.0,103780.0,0.192714]
[1734350073506,0.0942907,103790.0,103780.0,0.4402239]
[1734350074132,0.0942907,103790.0,103780.0,0.35293475]
[1734350074555,0.05137679,103810.0,103780.0,0.25657775]
[1734350074763,0.0954951,103800.0,103790.0,0.09634]
[1734350075189,0.557442,103800.0,103780.0,0.096351]
[1734350075399,0.0954951,103800.0,103790.0,0.16022075]
[1734350075632,0.0954951,103800.0,103790.0,0.25656875]
[1734350076047,0.0954951,103800.0,103790.0,0.096348]
[1734350077355,0.12953452,103800.0,103790.0,0.40656875]
[1734350078017,0.13073884,103800.0,103790.0,0.096348]
[1734350078226,0.0942907,103800.0,103790.0,0.096348]
[1734350078434,0.09549508,103800.0,103790.0,0.096348]
[1734350078651,0.34549508,103800.0,103790.0,0.096348]
[1734350078863,0.3442907,103800.0,103790.0,0.096348]
[1734350079308,0.3442907,103800.0,103790.0,0.25656875]
[1734350079757,0.0942907,103800.0,103790.0,0.25656875]
[1734350080009,0.09549504,103800.0,103790.0,0.25656875]
[1734350081974,0.0942907,103800.0,103790.0,0.25656875]
[1734350085201,0.0944633,103800.0,103790.0,0.25656875]
[1734350086012,0.0944633,103800.0,103790.0,0.096348]
[1734350087106,0.09566763,103800.0,103790.0,0.096348]
[1734350089521,0.09566763,103800.0,103780.0,0.096351]
[1734350089708,0.1697633,103800.0,103790.0,0.096348]
[1734350090847,0.4197633,103800.0,103790.0,0.096348]
[1734350092579,0.7124533,103800.0,103770.0,0.11140249]
[1734350092796,0.33820035,103790.0,103770.0,0.11140249]
[1734350092998,0.59185941,103790.0,103770.0,0.11140249]
[1734350093206,0.64185941,103790.0,103770.0,0.01503649]
[1734350093411,0.0942907,103780.0,103770.0,0.01503649]
[1734350093695,0.28821042,103780.0,103770.0,0.01503649]
[1734350093941,0.5370057,103780.0,103770.0,0.01503649]
[1734350094358,0.63118096,103780.0,103770.0,0.01503649]
[1734350094577,0.85614821,103780.0,103770.0,0.01503649]
[1734350095004,0.242734,103770.0,103750.0,0.192758]
[1734350095234,0.09549554,103760.0,103750.0,0.096485]
[1734350095913,0.43844754,103760.0,103750.0,0.000108]
[1734350096130,0.1714907,103760.0,103750.0,0.000108]
[1734350096339,0.03524382,103740.0,103730.0,0.25661975]
[1734350096544,0.12953452,103740.0,103730.0,0.25661975]
[1734350096757,0.12953452,103740.0,103730.0,0.096399]
[1734350097185,0.12953452,103740.0,103730.0,0.246399]
[1734350098010,0.13073951,103740.0,103730.0,0.246399]
[1734350098426,0.13073951,103740.0,103730.0,0.40661975]
[1734350099000,0.12953452,103740.0,103730.0,0.40661975]
[1734350099590,0.12953452,103740.0,103730.0,0.15189123]
[1734350100013,0.12953452,103740.0,103730.0,0.24829023]
[1734350100609,0.12953452,103740.0,103730.0,0.096399]
[1734350101518,0.12453452,103740.0,103730.0,0.096399]
[1734350101943,0.12573956,103740.0,103730.0,0.096399]
[1734350102300,0.09549574,103740.0,103730.0,0.096399]
[1734350102969,0.16860131,103740.0,103720.0,0.154251]
[1734350103171,0.09549586,103730.0,103720.0,0.077124]
[1734350104226,0.33831286,103730.0,103710.0,8.63e-05]
[1734350104564,0.60863286,103730.0,103710.0,8.63e-05]
[1734350104771,0.89562712,103730.0,103710.0,8.63e-05]
[1734350104983,0.0942907,103720.0,103710.0,8.63e-05]
[1734350105188,0.46979857,103720.0,103710.0,8.63e-05]
[1734350105394,0.345582,103690.0,103680.0,0.00047743]
[1734350105619,0.345582,103690.0,103660.0,0.9170463]
[1734350105620,0.2,103680.0,103660.0,0.9170463]
[1734350105820,0.4114157,103670.0,103660.0,0.9170463]
[1734350106007,0.49568604,103670.0,103660.0,0.9170463]
[1734350106233,0.56868604,103670.0,103660.0,0.9170463]
[1734350106437,0.49568604,103670.0,103660.0,0.9170463]
[1734350107034,0.54568604,103670.0,103660.0,0.9170463]
[1734350107173,0.56868604,103670.0,103660.0,0.9170463]
[1734350107389,0.58184315,103670.0,103660.0,0.9170463]
[1734350107575,0.78184315,103670.0,103660.0,0.9170463]
[1734350108117,0.83184315,103670.0,103660.0,0.9170463]
[1734350108289,0.76868604,103670.0,103660.0,0.9170463]
[1734350108493,0.3442907,103670.0,103660.0,0.9170463]
[1734350108716,0.3942907,103670.0,103660.0,0.9892213]
[1734350109081,0.3942907,103670.0,103660.0,0.9120463]
[1734350109519,0.3942907,103670.0,103660.0,0.9892213]
[1734350109693,0.4442907,103670.0,103660.0,0.9120463]
[1734350109915,0.4442907,103670.0,103660.0,0.9892213]
[1734350110116,0.3942907,103670.0,103660.0,0.9892213]
[1734350110492,0.3442907,103670.0,103660.0,1.14844205]
[1734350110920,0.3442907,103670.0,103660.0,0.9882213]
[1734350112657,0.0942907,103670.0,103660.0,0.9882213]
[1734350112856,0.09549659,103670.0,103660.0,0.9882213]
[1734350113688,0.34549659,103670.0,103660.0,0.9882213]
[1734350113943,0.3442907,103670.0,103660.0,0.9882213]
[1734350114069,0.3442907,103670.0,103660.0,1.14844205]
[1734350114707,0.0942907,103670.0,103660.0,0.9882213]
[1734350114919,0.09549661,103670.0,103660.0,0.9882213]
[1734350115520,0.09549661,103670.0,103660.0,1.00327588]
[1734350116136,0.28841561,103670.0,103660.0,0.92610088]
[1734350116339,0.2872097,103670.0,103660.0,0.92610088]
[1734350116542,0.5372097,103670.0,103660.0,0.92610088]
[1734350116958,0.3442907,103670.0,103660.0,0.92610088]
[1734350117163,0.3442907,103670.0,103660.0,1.00327588]
[1734350117372,0.5372097,103670.0,103660.0,0.92610088]
[1734350117575,0.3442907,103670.0,103660.0,1.00327588]
[1734350117802,0.0942907,103670.0,103660.0,1.00327588]
[1734350117999,0.0942907,103670.0,103660.0,0.92610088]
[1734350118000,0.28841566,103670.0,103660.0,0.92610088]
[1734350118203,0.51416058,103670.0,103660.0,0.92610088]
[1734350118707,0.76416058,103670.0,103660.0,0.92610088]
[1734350119094,2.76416058,103670.0,103660.0,0.92610088]
[1734350119718,2.79576058,103670.0,103660.0,0.88851528]
[1734350119928,3.10598133,103670.0,103660.0,0.81041528]
[1734350120136,3.20015659,103670.0,103660.0,0.01051528]
[1734350120782,0.342938,103660.0,103640.0,0.0164102]
[1734350120999,0.36145409,103650.0,103640.0,0.0164102]
[1734350121214,0.0942907,103650.0,103640.0,0.25382095]
[1734350121453,0.0942907,103650.0,103640.0,0.0936002]
[1734350121884,0.0942907,103650.0,103640.0,0.25382095]
[1734350122369,0.09445932,103650.0,103640.0,0.25382095]
[1734350122997,0.10402586,103650.0,103640.0,0.25382095]
[1734350123203,0.09445932,103650.0,103640.0,0.25382095]
[1734350124246,0.09445932,103650.0,103640.0,0.0936002]
[1734350125089,0.34445932,103650.0,103640.0,0.0936002]
[1734350127201,0.5162618,103650.0,103640.0,0.0164102]
[1734350127421,1.01627028,103650.0,103640.0,0.0164102]
[1734350127851,1.06627028,103650.0,103640.0,0.0164102]
[1734350128056,0.8407188,103650.0,103640.0,0.0164102]
[1734350128256,0.53741632,103650.0,103640.0,0.0164102]
[1734350128463,0.34445932,103650.0,103640.0,0.0164102]
[1734350128671,0.34445932,103650.0,103640.0,0.0936002]
[1734350129100,0.56873905,103650.0,103640.0,0.0164102]
[1734350129309,0.80587131,103650.0,103640.0,0.0164102]
[1734350129937,1.11609206,103650.0,103640.0,0.0164102]
[1734350130187,1.19389206,103650.0,103640.0,0.0164102]
[1734350130393,1.29519206,103650.0,103640.0,0.0164102]
[1734350130608,0.37619575,103640.0,103630.0,0.00912]
[1734350130810,0.55572069,103640.0,103630.0,0.00912]
[1734350131849,0.95572069,103640.0,103630.0,0.00912]
[1734350132478,0.293012,103620.0,103600.0,0.15706443]
[1734350132692,0.09549736,103610.0,103600.0,0.15706443]
[1734350133122,0.09549736,103610.0,103600.0,0.17212766]
[1734350133509,0.09049736,103610.0,103600.0,0.15712766]
[1734350133942,0.09066588,103610.0,103600.0,0.15712766]
[1734350134146,9.09066588,103610.0,103600.0,0.15712766]
[1734350134561,9.09066588,103610.0,103600.0,0.40064841]
[1734350134767,9.1209097,103610.0,103600.0,0.40064841]
[1734350134960,9.1209097,103610.0,103600.0,0.40073481]
[1734350136507,9.00016852,103610.0,103600.0,0.44663481]
[1734350136714,9.00016852,103610.0,103600.0,0.75685556]
[1734350136922,8.94225952,103610.0,103600.0,0.59663481]
[1734350137541,8.94225952,103610.0,103600.0,0.44663481]
[1734350138519,9.06679404,103610.0,103600.0,0.15721406]
[1734350138720,9.03655022,103610.0,103600.0,0.07999506]
[1734350139941,9.03655022,103610.0,103600.0,0.06493183]
[1734350140960,9.03655022,103610.0,103600.0,8.64e-05]
[1734350141210,9.03655022,103610.0,103600.0,0.0773064]
[1734350143499,9.19378097,103610.0,103600.0,8.64e-05]
[1734350143706,9.73661197,103610.0,103600.0,8.64e-05]
[1734350144332,9.78661197,103610.0,103600.0,8.64e-05]
[1734350144539,0.023,103600.0,103590.0,0.05504903]
[1734350144739,0.56294441,103600.0,103590.0,0.05504903]
[1734350144961,0.49457145,103600.0,103590.0,0.05504903]
[1734350145842,0.74457145,103600.0,103590.0,0.05504903]
[1734350146258,0.76757145,103600.0,103590.0,0.05504903]
[1734350146484,0.79457145,103600.0,103590.0,0.05504903]
[1734350146708,0.74457145,103600.0,103590.0,0.05504903]
[1734350146922,0.79457145,103600.0,103590.0,0.05513543]
[1734350147135,0.3442907,103600.0,103590.0,0.13236243]
[1734350147336,0.3442907,103600.0,103590.0,0.05513543]
[1734350147760,0.3442907,103600.0,103590.0,0.13236243]
[1734350147761,0.3942907,103600.0,103590.0,0.13236243]
[1734350147976,0.6638407,103600.0,103590.0,0.05513543]
[1734350148184,0.69012994,103600.0,103590.0,0.05513543]
[1734350148402,0.3942907,103600.0,103590.0,0.13236243]
[1734350148615,0.3442907,103600.0,103590.0,0.29258318]
[1734350148827,0.12453452,103600.0,103590.0,0.29258318]
[1734350149061,0.0954884,103600.0,103590.0,0.29258318]
[1734350149906,0.0954884,103600.0,103590.0,0.13236243]
[1734350150116,0.0954884,103600.0,103590.0,0.05513543]
[1734350150373,0.4441342,103600.0,103590.0,0.05513543]
[1734350150606,0.4929365,103600.0,103590.0,0.05513543]
[1734350150824,0.5429365,103600.0,103590.0,0.05513543]
[1734350151039,0.88711176,103600.0,103590.0,0.05513543]
[1734350152591,0.83711176,103600.0,103590.0,0.05513543]
[1734350153281,0.83711176,103600.0,103590.0,0.01652143]
[1734350153282,1.31891176,103600.0,103590.0,0.01652143]
[1734350153483,1.31891176,103600.0,103580.0,0.00240568]
[1734350153484,0.193068,103590.0,103580.0,0.00240568]
[1734350153693,0.44313959,103590.0,103580.0,0.00240568]
[1734350153904,0.53611715,103590.0,103580.0,0.00240568]
[1734350154388,0.68611715,103590.0,103580.0,6.8e-07]
[1734350154574,0.70911715,103590.0,103580.0,6.8e-07]
[1734350155188,0.59194189,103590.0,103580.0,6.8e-07]
[1734350155597,0.49194189,103590.0,103580.0,6.8e-07]
[1734350155824,0.44194189,103590.0,103580.0,6.8e-07]
[1734350156458,0.69194189,103590.0,103580.0,6.8e-07]
[1734350158616,0.69194189,103590.0,103580.0,8.708e-05]
[1734350158821,0.83611715,103590.0,103580.0,8.708e-05]
[1734350160296,0.78611715,103590.0,103580.0,8.708e-05]
[1734350160812,1.12008678,103590.0,103580.0,8.708e-05]
[1734350161032,0.95911715,103590.0,103580.0,8.708e-05]
[1734350162266,0.99219665,103590.0,103580.0,8.708e-05]
[1734350162467,1.02926199,103590.0,103580.0,8.708e-05]
[1734350162876,0.90200723,103590.0,103580.0,8.708e-05]
[1734350163100,0.87900723,103590.0,103580.0,8.708e-05]
[1734350163322,0.77900723,103590.0,103580.0,8.708e-05]
[1734350163535,0.74194189,103590.0,103580.0,8.708e-05]
[1734350163749,0.69194189,103590.0,103580.0,8.708e-05]
[1734350163960,0.78611715,103590.0,103580.0,8.708e-05]
[1734350164164,0.93351715,103590.0,103580.0,8.708e-05]
[1734350164422,0.293124,103560.0,103550.0,8.63e-05]
[1734350164622,0.54720585,103560.0,103550.0,8.63e-05]
[1734350165026,0.44720585,103560.0,103550.0,8.63e-05]
[1734350165439,0.25408185,103560.0,103550.0,8.63e-05]
[1734350165651,0.50408185,103560.0,103550.0,0.00064921]
[1734350165874,0.50408185,103560.0,103550.0,0.077257]
[1734350166117,0.69720585,103560.0,103540.0,0.36879884]
[1734350166379,0.0954884,103550.0,103540.0,0.29455335]
[1734350166828,0.0954884,103550.0,103540.0,0.00301551]
[1734350167075,0.2886314,103550.0,103540.0,0.00301551]
[1734350167287,0.2874337,103550.0,103540.0,0.00301551]
[1734350167727,0.5374337,103550.0,103540.0,0.00301551]
[1734350167933,0.3442907,103550.0,103540.0,0.00301551]
[1734350168172,0.3442907,103550.0,103540.0,0.08027951]
[1734350168367,0.3442907,103550.0,103540.0,0.24124914]
[1734350168582,0.3442907,103550.0,103540.0,0.23823363]
[1734350168795,0.3442907,103550.0,103540.0,0.24124903]
[1734350169003,0.37453452,103550.0,103540.0,0.24124903]
[1734350169204,0.3442907,103550.0,103540.0,0.24124903]
[1734350169421,0.37453452,103550.0,103540.0,0.24124903]
[1734350169611,0.07922038,103550.0,103540.0,0.24124903]
[1734350169817,0.1106619,103550.0,103540.0,0.24124903]
[1734350170671,0.08041808,103550.0,103540.0,0.24124903]
[1734350170878,0.23124523,103550.0,103540.0,0.24124903]
[1734350171083,0.07922038,103550.0,103540.0,0.24124903]
[1734350171492,0.1094642,103550.0,103540.0,0.29054903]
[1734350171701,0.1094642,103550.0,103540.0,0.28753363]
[1734350171919,0.1094642,103550.0,103540.0,0.2906352]
[1734350172330,0.1094642,103550.0,103540.0,0.28762003]
[1734350172544,0.03200519,103560.0,103550.0,0.077257]
[1734350172753,0.03080749,103560.0,103550.0,0.23822663]
[1734350174410,0.00056367,103560.0,103550.0,0.23822663]
[1734350174661,0.03080749,103560.0,103550.0,0.23822663]
[1734350176316,0.12509819,103560.0,103550.0,0.26122663]
[1734350176529,0.12509819,103560.0,103550.0,0.077257]
[1734350176743,0.03024382,103550.0,103540.0,0.29013127]
[1734350176953,0.12573222,103550.0,103540.0,0.29013127]
[1734350177159,0.0954884,103550.0,103540.0,0.29013127]
[1734350177370,0.0954884,103550.0,103540.0,0.1261864]
[1734350177575,0.0954884,103550.0,103540.0,8.64e-05]
[1734350177576,0.44518928,103550.0,103540.0,8.64e-05]
[1734350177780,0.77839158,103550.0,103540.0,0.00310194]
[1734350177985,0.69518928,103550.0,103540.0,0.00310194]
[1734350178608,0.69518928,103550.0,103540.0,0.24133557]
[1734350178609,0.3442907,103550.0,103540.0,0.24133557]
[1734350178823,0.0942907,103550.0,103540.0,0.23832003]
[1734350179028,0.1250813,103550.0,103540.0,0.23832003]
[1734350179238,0.12453452,103550.0,103540.0,0.23832003]
[1734350179446,0.12453452,103550.0,103540.0,0.31552003]
[1734350180299,0.0942907,103550.0,103540.0,0.1545504]
[1734350180504,0.12453452,103550.0,103540.0,0.1545504]
[1734350180715,0.37453452,103550.0,103540.0,0.31552003]
[1734350181537,0.3442907,103550.0,103540.0,0.31552003]
[1734350181742,0.12453452,103550.0,103540.0,0.31552003]
[1734350181988,0.09483748,103550.0,103540.0,0.31552003]
[1734350182179,0.10946553,103550.0,103540.0,0.31552003]
[1734350182381,0.03024382,103550.0,103540.0,0.39278403]
[1734350182794,0.1250813,103550.0,103540.0,0.39278403]
[1734350183550,0.09483748,103550.0,103540.0,0.39278403]
[1734350183755,0.1250813,103550.0,103540.0,0.39278403]
[1734350183956,0.1250813,103550.0,103540.0,0.31558403]
[1734350184155,0.1250813,103550.0,103540.0,0.1546144]
[1734350186249,0.1250813,103550.0,103540.0,0.0773504]
[1734350186250,0.09483748,103550.0,103540.0,0.0773504]
[1734350190005,0.09483748,103550.0,103540.0,0.18468188]
[1734350190209,0.09483748,103550.0,103540.0,0.0773504]
[1734350190431,0.09483748,103550.0,103540.0,8.64e-05]
[1734350190649,0.09483748,103550.0,103540.0,0.0773504]
[1734350191309,0.09479688,103550.0,103540.0,0.0773504]
[1734350191522,0.09479688,103550.0,103540.0,8.64e-05]
[1734350191731,0.09479688,103550.0,103540.0,0.0773504]
[1734350192830,0.34479688,103550.0,103540.0,0.0773504]